[Event "Titled Tuesday Blitz August 08 Late 2023"]
[White "Goltsev, Dmitry"]
[Black "Vachier-Lagrave, Maxime"]
[WhiteFideId "24176710"]
[BlackFideId "623539"]
[WhiteElo "2638"]
[BlackElo "3168"]
[Result "0-1"]
[Round "2"]
[TimeControl "180+1"]
[Date "2023.08.08"]
[WhiteClock "0:00:31"]
[BlackClock "0:01:33"]
[Board "2"]

1. e4 {[%clk 0:02:59]}  e5 {[%clk 0:03:00]} 2. Nf3 {[%clk 0:02:59]}  Nc6 {[%clk 0:03:00]} 3. Bb5 {[%clk 0:02:59]}  a6 {[%clk 0:03:01]} 4. Ba4 {[%clk 0:02:59]}  Nf6 {[%clk 0:03:02]} 5. O-O {[%clk 0:02:59]}  Be7 {[%clk 0:02:58]} 6. Re1 {[%clk 0:02:59]}  b5 {[%clk 0:02:58]} 7. Bb3 {[%clk 0:02:59]}  d6 {[%clk 0:02:58]} 8. c3 {[%clk 0:02:56]}  O-O {[%clk 0:02:58]} 9. h3 {[%clk 0:02:53]}  Nb8 {[%clk 0:02:56]} 10. d4 {[%clk 0:02:53]}  Nbd7 {[%clk 0:02:57]} 11. Nbd2 {[%clk 0:02:53]}  Re8 {[%clk 0:02:56]} 12. Ng5 {[%clk 0:02:52]}  Rf8 {[%clk 0:02:56]} 13. Ngf3 {[%clk 0:02:52]}  Bb7 {[%clk 0:02:54]} 14. d5 {[%clk 0:02:34]}  c6 {[%clk 0:02:42]} 15. dxc6 {[%clk 0:02:32]}  Bxc6 {[%clk 0:02:43]} 16. Bc2 {[%clk 0:02:24]}  Nc5 {[%clk 0:02:40]} 17. b4 {[%clk 0:02:17]}  Ne6 {[%clk 0:02:40]} 18. Nf1 {[%clk 0:02:16]}  Qc7 {[%clk 0:02:36]} 19. Ng3 {[%clk 0:02:14]}  Rfd8 {[%clk 0:02:33]} 20. Nf5 {[%clk 0:02:13]}  Bf8 {[%clk 0:02:34]} 21. Qe2 {[%clk 0:02:06]}  Rac8 {[%clk 0:02:18]} 22. Bd2 {[%clk 0:02:01]}  Bb7 {[%clk 0:02:08]} 23. a4 {[%clk 0:01:58]}  bxa4 {[%clk 0:02:08]} 24. Rxa4 {[%clk 0:01:56]}  g6 {[%clk 0:02:08]} 25. Ng3 {[%clk 0:01:51]}  Nf4 {[%clk 0:02:07]} 26. Qf1 {[%clk 0:01:47]}  Bh6 {[%clk 0:02:05]} 27. Ra3 {[%clk 0:01:41]}  d5 {[%clk 0:01:57]} 28. exd5 {[%clk 0:01:24]}  Bxd5 {[%clk 0:01:57]} 29. Ne4 {[%clk 0:01:10]}  Nxe4 {[%clk 0:01:56]} 30. Bxe4 {[%clk 0:01:10]}  Bc4 {[%clk 0:01:55]} 31. Bxf4 {[%clk 0:01:01]}  exf4 {[%clk 0:01:35]} 32. Re2 {[%clk 0:01:01]}  Re8 {[%clk 0:01:35]} 33. Nd2 {[%clk 0:00:51]}  f3 {[%clk 0:01:34]} 34. gxf3 {[%clk 0:00:31]}  Bxd2 {[%clk 0:01:33]} 0-1


[Site "https://www.chess.com"]

[Event "Titled Tuesday Blitz August 08 Late 2023"]
[White "Fedoseev, Vladimir"]
[Black "Tsvetkov, Andrey"]
[WhiteFideId "24130737"]
[BlackFideId "34139360"]
[WhiteElo "3096"]
[BlackElo "2634"]
[Result "1-0"]
[Round "2"]
[TimeControl "180+1"]
[Date "2023.08.08"]
[WhiteClock "0:01:36"]
[BlackClock "0:00:53"]
[Board "3"]

1. Nf3 {[%clk 0:02:57]}  d5 {[%clk 0:03:00]} 2. g3 {[%clk 0:02:58]}  c6 {[%clk 0:02:59]} 3. Bg2 {[%clk 0:02:58]}  Bg4 {[%clk 0:03:00]} 4. O-O {[%clk 0:02:59]}  Nd7 {[%clk 0:03:00]} 5. d3 {[%clk 0:02:59]}  Ngf6 {[%clk 0:02:58]} 6. Nbd2 {[%clk 0:02:58]}  e5 {[%clk 0:02:58]} 7. e4 {[%clk 0:02:58]}  Be7 {[%clk 0:02:56]} 8. Qe1 {[%clk 0:02:57]}  O-O {[%clk 0:02:41]} 9. exd5 {[%clk 0:02:51]}  Nxd5 {[%clk 0:02:42]} 10. Nxe5 {[%clk 0:02:49]}  Nxe5 {[%clk 0:02:42]} 11. Qxe5 {[%clk 0:02:48]}  Nb4 {[%clk 0:02:43]} 12. Qc3 {[%clk 0:02:47]}  a5 {[%clk 0:02:25]} 13. Nc4 {[%clk 0:02:37]}  Bf6 {[%clk 0:02:22]} 14. Qd2 {[%clk 0:02:37]}  Be6 {[%clk 0:02:13]} 15. a3 {[%clk 0:02:33]}  Nd5 {[%clk 0:01:53]} 16. Re1 {[%clk 0:02:31]}  b5 {[%clk 0:01:51]} 17. Ne5 {[%clk 0:02:28]}  Qc7 {[%clk 0:01:50]} 18. d4 {[%clk 0:02:26]}  Rfd8 {[%clk 0:01:47]} 19. c3 {[%clk 0:02:21]}  c5 {[%clk 0:01:46]} 20. Qe2 {[%clk 0:02:09]}  cxd4 {[%clk 0:01:40]} 21. cxd4 {[%clk 0:02:09]}  Rab8 {[%clk 0:01:38]} 22. Bd2 {[%clk 0:02:07]}  Ne7 {[%clk 0:01:22]} 23. Rac1 {[%clk 0:02:03]}  Qa7 {[%clk 0:01:22]} 24. Be3 {[%clk 0:01:59]}  Bd5 {[%clk 0:01:22]} 25. Ng4 {[%clk 0:01:43]}  Bxd4 {[%clk 0:01:04]} 26. Bxd4 {[%clk 0:01:38]}  Qxd4 {[%clk 0:01:04]} 27. Rcd1 {[%clk 0:01:37]}  Qc4 {[%clk 0:00:53]} 28. Qxe7 {[%clk 0:01:36]} 1-0


[Site "https://www.chess.com"]

[Event "Titled Tuesday Blitz August 08 Late 2023"]
[White "Kleiman, Jake"]
[Black "Firouzja, Alireza"]
[WhiteFideId "2020041"]
[BlackFideId "12573981"]
[WhiteElo "2626"]
[BlackElo "3087"]
[Result "1/2-1/2"]
[Round "2"]
[TimeControl "180+1"]
[Date "2023.08.08"]
[WhiteClock "0:00:14"]
[BlackClock "0:00:05"]
[Board "4"]

1. e4 {[%clk 0:03:00]}  c5 {[%clk 0:02:59]} 2. c3 {[%clk 0:03:00]}  Nf6 {[%clk 0:02:56]} 3. e5 {[%clk 0:03:00]}  Nd5 {[%clk 0:02:56]} 4. Bc4 {[%clk 0:03:01]}  e6 {[%clk 0:02:56]} 5. Nf3 {[%clk 0:03:01]}  d6 {[%clk 0:02:56]} 6. d4 {[%clk 0:03:01]}  cxd4 {[%clk 0:02:56]} 7. cxd4 {[%clk 0:03:02]}  Bd7 {[%clk 0:02:57]} 8. O-O {[%clk 0:02:59]}  Bc6 {[%clk 0:02:57]} 9. Bxd5 {[%clk 0:02:59]}  Bxd5 {[%clk 0:02:56]} 10. Nc3 {[%clk 0:03:00]}  Bxf3 {[%clk 0:02:56]} 11. Qxf3 {[%clk 0:03:01]}  d5 {[%clk 0:02:57]} 12. Be3 {[%clk 0:02:57]}  Nc6 {[%clk 0:02:56]} 13. Rad1 {[%clk 0:02:56]}  Be7 {[%clk 0:02:53]} 14. Qe2 {[%clk 0:02:54]}  O-O {[%clk 0:02:52]} 15. f4 {[%clk 0:02:53]}  f5 {[%clk 0:02:42]} 16. Rc1 {[%clk 0:02:44]}  Rc8 {[%clk 0:02:32]} 17. Qd2 {[%clk 0:02:37]}  Qa5 {[%clk 0:02:28]} 18. Rfd1 {[%clk 0:02:18]}  b5 {[%clk 0:02:15]} 19. a3 {[%clk 0:02:13]}  b4 {[%clk 0:02:14]} 20. axb4 {[%clk 0:02:13]}  Nxb4 {[%clk 0:02:11]} 21. Ra1 {[%clk 0:02:11]}  Qb6 {[%clk 0:02:09]} 22. Rdc1 {[%clk 0:02:08]}  Rc4 {[%clk 0:01:54]} 23. b3 {[%clk 0:01:59]}  Rc6 {[%clk 0:01:45]} 24. Na4 {[%clk 0:01:46]}  Qb5 {[%clk 0:01:44]} 25. Rxc6 {[%clk 0:01:46]}  Nxc6 {[%clk 0:01:39]} 26. Qc3 {[%clk 0:01:37]}  Bb4 {[%clk 0:01:14]} 27. Qc2 {[%clk 0:01:35]}  Rc8 {[%clk 0:01:10]} 28. Rc1 {[%clk 0:01:23]}  Ne7 {[%clk 0:01:01]} 29. Qd1 {[%clk 0:01:22]}  Rxc1 {[%clk 0:01:01]} 30. Bxc1 {[%clk 0:01:20]}  Nc6 {[%clk 0:01:01]} 31. Bb2 {[%clk 0:01:16]}  Be7 {[%clk 0:00:56]} 32. Bc3 {[%clk 0:01:13]}  Bb4 {[%clk 0:00:52]} 33. Bb2 {[%clk 0:01:12]}  Na5 {[%clk 0:00:51]} 34. Qc2 {[%clk 0:00:41]}  Qc6 {[%clk 0:00:45]} 35. Qd3 {[%clk 0:00:34]}  h6 {[%clk 0:00:33]} 36. Kf2 {[%clk 0:00:32]}  a6 {[%clk 0:00:33]} 37. Ke2 {[%clk 0:00:31]}  Qb5 {[%clk 0:00:31]} 38. Qxb5 {[%clk 0:00:16]}  axb5 {[%clk 0:00:32]} 39. Nc3 {[%clk 0:00:16]}  Bxc3 {[%clk 0:00:16]} 40. Bxc3 {[%clk 0:00:17]}  Nc6 {[%clk 0:00:17]} 41. Kd3 {[%clk 0:00:17]}  Kf7 {[%clk 0:00:15]} 42. h3 {[%clk 0:00:16]}  Kg6 {[%clk 0:00:15]} 43. Be1 {[%clk 0:00:15]}  Kh5 {[%clk 0:00:15]} 44. Bf2 {[%clk 0:00:15]}  g5 {[%clk 0:00:15]} 45. g3 {[%clk 0:00:15]}  Nb4+ {[%clk 0:00:06]} 46. Kd2 {[%clk 0:00:15]}  Nc6 {[%clk 0:00:07]} 47. Kd3 {[%clk 0:00:15]}  Kg6 {[%clk 0:00:05]} 48. Kc3 {[%clk 0:00:15]}  b4+ {[%clk 0:00:03]} 49. Kd3 {[%clk 0:00:14]}  Kh5 {[%clk 0:00:04]} 50. Kd2 {[%clk 0:00:13]}  Na5 {[%clk 0:00:04]} 51. Kc2 {[%clk 0:00:13]}  Nc6 {[%clk 0:00:04]} 52. Kd3 {[%clk 0:00:13]}  gxf4 {[%clk 0:00:04]} 53. gxf4 {[%clk 0:00:14]}  Ne7 {[%clk 0:00:05]} 54. Ke3 {[%clk 0:00:13]}  Kg6 {[%clk 0:00:02]} 55. Kd3 {[%clk 0:00:12]}  Nc6 {[%clk 0:00:01]} 56. Be1 {[%clk 0:00:12]}  Kf7 {[%clk 0:00:02]} 57. Bd2 {[%clk 0:00:12]}  Ke7 {[%clk 0:00:02]} 58. Be1 {[%clk 0:00:12]}  Kd7 {[%clk 0:00:03]} 59. Bh4 {[%clk 0:00:12]}  Kc7 {[%clk 0:00:03]} 60. Bf6 {[%clk 0:00:12]}  Kb6 {[%clk 0:00:02]} 61. Bh4 {[%clk 0:00:12]}  Kb5 {[%clk 0:00:02]} 62. Be1 {[%clk 0:00:12]}  Na5 {[%clk 0:00:03]} 63. Kc2 {[%clk 0:00:12]}  Nc6 {[%clk 0:00:03]} 64. Kd3 {[%clk 0:00:12]}  Ne7 {[%clk 0:00:04]} 65. Bh4 {[%clk 0:00:12]}  Ng6 {[%clk 0:00:04]} 66. Bg3 {[%clk 0:00:12]}  Ka5 {[%clk 0:00:04]} 67. Ke3 {[%clk 0:00:12]}  Kb5 {[%clk 0:00:04]} 68. Kd3 {[%clk 0:00:12]}  Nf8 {[%clk 0:00:04]} 69. Ke3 {[%clk 0:00:13]}  Nd7 {[%clk 0:00:04]} 70. Kd3 {[%clk 0:00:13]}  Nb8 {[%clk 0:00:05]} 71. Bf2 {[%clk 0:00:13]}  Nc6 {[%clk 0:00:05]} 72. Be1 {[%clk 0:00:14]} 1/2-1/2


[Site "https://www.chess.com"]

[Event "Titled Tuesday Blitz August 08 Late 2023"]
[White "Tologon tegin, Semetei"]
[Black "Aronian, Levon"]
[WhiteFideId "13800574"]
[BlackFideId "13300474"]
[WhiteElo "2616"]
[BlackElo "3048"]
[Result "0-1"]
[Round "2"]
[TimeControl "180+1"]
[Date "2023.08.08"]
[WhiteClock "0:00:00"]
[BlackClock "0:00:45"]
[Board "6"]

1. e4 {[%clk 0:02:20]}  c5 {[%clk 0:02:59]} 2. Nf3 {[%clk 0:02:20]}  e6 {[%clk 0:02:59]} 3. d4 {[%clk 0:02:20]}  cxd4 {[%clk 0:02:59]} 4. Nxd4 {[%clk 0:02:21]}  Nc6 {[%clk 0:02:59]} 5. Nc3 {[%clk 0:02:21]}  Qc7 {[%clk 0:03:00]} 6. g3 {[%clk 0:02:19]}  a6 {[%clk 0:02:58]} 7. Bg2 {[%clk 0:02:19]}  Nf6 {[%clk 0:02:58]} 8. O-O {[%clk 0:02:19]}  Nxd4 {[%clk 0:02:58]} 9. Qxd4 {[%clk 0:02:18]}  Bc5 {[%clk 0:02:57]} 10. Bf4 {[%clk 0:02:08]}  d6 {[%clk 0:02:56]} 11. Qd3 {[%clk 0:02:06]}  h6 {[%clk 0:02:55]} 12. Rad1 {[%clk 0:02:03]}  e5 {[%clk 0:02:54]} 13. Be3 {[%clk 0:02:01]}  Bxe3 {[%clk 0:02:54]} 14. fxe3 {[%clk 0:02:01]}  Be6 {[%clk 0:02:53]} 15. Qxd6 {[%clk 0:01:57]}  Qxd6 {[%clk 0:02:53]} 16. Rxd6 {[%clk 0:01:58]}  Rc8 {[%clk 0:02:52]} 17. Rf2 {[%clk 0:01:55]}  Rxc3 {[%clk 0:02:44]} 18. bxc3 {[%clk 0:01:54]}  Nd7 {[%clk 0:02:43]} 19. Rfd2 {[%clk 0:01:47]}  Ke7 {[%clk 0:02:42]} 20. Bf1 {[%clk 0:01:23]}  Rc8 {[%clk 0:02:41]} 21. c4 {[%clk 0:01:23]}  Rc7 {[%clk 0:02:40]} 22. c3 {[%clk 0:01:11]}  Nc5 {[%clk 0:02:33]} 23. Rb6 {[%clk 0:01:11]}  Bd7 {[%clk 0:02:25]} 24. Rd5 {[%clk 0:01:02]}  f6 {[%clk 0:02:25]} 25. h4 {[%clk 0:00:53]}  Na4 {[%clk 0:02:17]} 26. Rb3 {[%clk 0:00:48]}  Bc6 {[%clk 0:02:17]} 27. Ra5 {[%clk 0:00:47]}  Be8 {[%clk 0:02:11]} 28. Kf2 {[%clk 0:00:24]}  Bd7 {[%clk 0:01:48]} 29. Kf3 {[%clk 0:00:22]}  Kd8 {[%clk 0:01:33]} 30. g4 {[%clk 0:00:22]}  g5 {[%clk 0:01:30]} 31. hxg5 {[%clk 0:00:21]}  hxg5 {[%clk 0:01:31]} 32. c5 {[%clk 0:00:11]}  Nxc5 {[%clk 0:01:20]} 33. Rxc5 {[%clk 0:00:10]}  Rxc5 {[%clk 0:01:21]} 34. Rxb7 {[%clk 0:00:11]}  a5 {[%clk 0:01:20]} 35. Ra7 {[%clk 0:00:10]}  Ke7 {[%clk 0:00:50]} 36. c4 {[%clk 0:00:10]}  Kd6 {[%clk 0:00:48]} 37. Ra6+ {[%clk 0:00:09]}  Bc6 {[%clk 0:00:47]} 38. Bd3 {[%clk 0:00:08]}  Kc7 {[%clk 0:00:46]} 39. Ra7+ {[%clk 0:00:06]}  Bb7 {[%clk 0:00:46]} 40. Ke2 {[%clk 0:00:05]}  Kb6 {[%clk 0:00:46]} 41. Rxb7+ {[%clk 0:00:05]}  Kxb7 {[%clk 0:00:46]} 42. Kd2 {[%clk 0:00:06]}  Kb6 {[%clk 0:00:46]} 43. Kc3 {[%clk 0:00:07]}  Rc8 {[%clk 0:00:46]} 44. Be2 {[%clk 0:00:05]}  Kc5 {[%clk 0:00:46]} 45. Bd1 {[%clk 0:00:05]}  Rh8 {[%clk 0:00:46]} 46. Ba4 {[%clk 0:00:05]}  Rh3 {[%clk 0:00:46]} 47. Kd3 {[%clk 0:00:05]}  Rh2 {[%clk 0:00:46]} 48. a3 {[%clk 0:00:05]}  Ra2 {[%clk 0:00:45]} 49. Bd7 {[%clk 0:00:00]}  Rxa3+ {[%clk 0:00:45]} 0-1


[Site "https://www.chess.com"]

[Event "Titled Tuesday Blitz August 08 Late 2023"]
[White "Paravyan, David"]
[Black "Goldin, Alexander"]
[WhiteFideId "4194985"]
[BlackFideId "2019540"]
[WhiteElo "3034"]
[BlackElo "2615"]
[Result "1-0"]
[Round "2"]
[TimeControl "180+1"]
[Date "2023.08.08"]
[WhiteClock "0:02:30"]
[BlackClock "0:00:21"]
[Board "7"]

1. e4 {[%clk 0:03:00]}  e5 {[%clk 0:02:59]} 2. Nf3 {[%clk 0:03:01]}  Nc6 {[%clk 0:02:59]} 3. Nc3 {[%clk 0:03:01]}  Nf6 {[%clk 0:02:59]} 4. d4 {[%clk 0:03:02]}  exd4 {[%clk 0:02:58]} 5. Nxd4 {[%clk 0:03:03]}  Bb4 {[%clk 0:02:57]} 6. Nxc6 {[%clk 0:03:03]}  bxc6 {[%clk 0:02:57]} 7. Bd3 {[%clk 0:03:04]}  O-O {[%clk 0:02:56]} 8. O-O {[%clk 0:03:04]}  d5 {[%clk 0:02:56]} 9. exd5 {[%clk 0:03:05]}  cxd5 {[%clk 0:02:57]} 10. h3 {[%clk 0:03:06]}  c6 {[%clk 0:02:56]} 11. Qf3 {[%clk 0:03:04]}  Rb8 {[%clk 0:02:56]} 12. Bf4 {[%clk 0:03:03]}  Bd6 {[%clk 0:02:56]} 13. b3 {[%clk 0:03:03]}  Rb4 {[%clk 0:02:48]} 14. Ne2 {[%clk 0:03:00]}  Bxf4 {[%clk 0:02:31]} 15. Nxf4 {[%clk 0:03:01]}  Qd6 {[%clk 0:02:26]} 16. c4 {[%clk 0:03:01]}  a5 {[%clk 0:02:20]} 17. Rad1 {[%clk 0:02:57]}  Be6 {[%clk 0:02:17]} 18. Rfe1 {[%clk 0:02:57]}  a4 {[%clk 0:02:11]} 19. Bc2 {[%clk 0:02:56]}  axb3 {[%clk 0:02:11]} 20. axb3 {[%clk 0:02:57]}  Rbb8 {[%clk 0:02:04]} 21. Qg3 {[%clk 0:02:55]}  Qd7 {[%clk 0:01:49]} 22. Re5 {[%clk 0:02:51]}  Rfe8 {[%clk 0:01:21]} 23. Rg5 {[%clk 0:02:30]}  g6 {[%clk 0:01:18]} 24. h4 {[%clk 0:02:30]}  Re7 {[%clk 0:00:28]} 25. Nxe6 {[%clk 0:02:29]}  Qxe6 {[%clk 0:00:21]} 26. Qxb8+ {[%clk 0:02:30]} 1-0


[Site "https://www.chess.com"]

[Event "Titled Tuesday Blitz August 08 Late 2023"]
[White "Hilary46"]
[Black "Andreikin, Dmitry"]
[BlackFideId "4158814"]
[WhiteElo "2614"]
[BlackElo "3018"]
[Result "0-1"]
[Round "2"]
[TimeControl "180+1"]
[Date "2023.08.08"]
[WhiteClock "0:00:07"]
[BlackClock "0:01:43"]
[Board "8"]

1. e4 {[%clk 0:03:00]}  c5 {[%clk 0:02:59]} 2. Nf3 {[%clk 0:03:01]}  e6 {[%clk 0:03:00]} 3. d4 {[%clk 0:03:01]}  cxd4 {[%clk 0:03:00]} 4. Nxd4 {[%clk 0:03:02]}  Nc6 {[%clk 0:03:01]} 5. Nc3 {[%clk 0:03:03]}  a6 {[%clk 0:03:01]} 6. Be3 {[%clk 0:02:53]}  Nf6 {[%clk 0:03:01]} 7. Nxc6 {[%clk 0:02:53]}  bxc6 {[%clk 0:03:00]} 8. e5 {[%clk 0:02:54]}  Nd5 {[%clk 0:03:00]} 9. Nxd5 {[%clk 0:02:55]}  cxd5 {[%clk 0:03:00]} 10. Bd4 {[%clk 0:02:55]}  Be7 {[%clk 0:02:41]} 11. Qd2 {[%clk 0:02:55]}  O-O {[%clk 0:02:39]} 12. Bd3 {[%clk 0:02:44]}  a5 {[%clk 0:02:36]} 13. O-O {[%clk 0:02:43]}  Ba6 {[%clk 0:02:35]} 14. Bxa6 {[%clk 0:02:43]}  Rxa6 {[%clk 0:02:36]} 15. a4 {[%clk 0:02:31]}  Qc7 {[%clk 0:02:33]} 16. Rfc1 {[%clk 0:02:12]}  Rb8 {[%clk 0:02:30]} 17. b3 {[%clk 0:02:10]}  Rc6 {[%clk 0:02:31]} 18. h3 {[%clk 0:02:04]}  h6 {[%clk 0:02:31]} 19. Qd3 {[%clk 0:02:02]}  Bg5 {[%clk 0:02:29]} 20. Rf1 {[%clk 0:01:52]}  Rxc2 {[%clk 0:02:25]} 21. f4 {[%clk 0:01:52]}  Be7 {[%clk 0:02:24]} 22. f5 {[%clk 0:01:53]}  Bc5 {[%clk 0:02:24]} 23. Kh1 {[%clk 0:01:49]}  Bxd4 {[%clk 0:02:23]} 24. Qxd4 {[%clk 0:01:50]}  Rxb3 {[%clk 0:02:16]} 25. f6 {[%clk 0:01:15]}  Qc4 {[%clk 0:02:05]} 26. Qd1 {[%clk 0:01:11]}  Qe4 {[%clk 0:02:01]} 27. Qg4 {[%clk 0:01:06]}  Qxg4 {[%clk 0:02:00]} 28. hxg4 {[%clk 0:01:07]}  Rg3 {[%clk 0:02:00]} 29. Rfc1 {[%clk 0:00:51]}  Rgxg2 {[%clk 0:01:54]} 30. Rxc2 {[%clk 0:00:50]}  Rxc2 {[%clk 0:01:55]} 31. Rb1 {[%clk 0:00:51]}  gxf6 {[%clk 0:01:54]} 32. exf6 {[%clk 0:00:51]}  Rc4 {[%clk 0:01:54]} 33. Rb7 {[%clk 0:00:40]}  Rxa4 {[%clk 0:01:52]} 34. Rxd7 {[%clk 0:00:40]}  Rxg4 {[%clk 0:01:53]} 35. Kh2 {[%clk 0:00:38]}  Rg6 {[%clk 0:01:50]} 36. Ra7 {[%clk 0:00:33]}  Rxf6 {[%clk 0:01:51]} 37. Kg3 {[%clk 0:00:34]}  Rg6+ {[%clk 0:01:50]} 38. Kf4 {[%clk 0:00:34]}  Rf6+ {[%clk 0:01:50]} 39. Ke5 {[%clk 0:00:35]}  Rf5+ {[%clk 0:01:51]} 40. Kd6 {[%clk 0:00:35]}  h5 {[%clk 0:01:51]} 41. Rxa5 {[%clk 0:00:33]}  d4 {[%clk 0:01:49]} 42. Ra1 {[%clk 0:00:29]}  Kf8 {[%clk 0:01:47]} 43. Ra8+ {[%clk 0:00:24]}  Kg7 {[%clk 0:01:47]} 44. Ke7 {[%clk 0:00:25]}  d3 {[%clk 0:01:47]} 45. Ra1 {[%clk 0:00:26]}  d2 {[%clk 0:01:47]} 46. Rg1+ {[%clk 0:00:26]}  Kh6 {[%clk 0:01:47]} 47. Kf8 {[%clk 0:00:22]}  h4 {[%clk 0:01:46]} 48. Ke7 {[%clk 0:00:14]}  Rd5 {[%clk 0:01:43]} 49. Rd1 {[%clk 0:00:07]}  Kg6 {[%clk 0:01:43]} 0-1


[Site "https://www.chess.com"]

[Event "Titled Tuesday Blitz August 08 Late 2023"]
[White "Kramnik, Vladimir"]
[Black "Di Berardino, Diego Rafael"]
[WhiteFideId "4101588"]
[BlackFideId "2105446"]
[WhiteElo "2980"]
[BlackElo "2612"]
[Result "1/2-1/2"]
[Round "2"]
[TimeControl "180+1"]
[Date "2023.08.08"]
[WhiteClock "0:00:08"]
[BlackClock "0:00:03"]
[Board "10"]

1. e4 {[%clk 0:03:00]}  c5 {[%clk 0:02:57]} 2. Nf3 {[%clk 0:03:00]}  b6 {[%clk 0:02:52]} 3. d4 {[%clk 0:02:58]}  cxd4 {[%clk 0:02:53]} 4. Nxd4 {[%clk 0:02:58]}  Bb7 {[%clk 0:02:53]} 5. Nc3 {[%clk 0:02:58]}  Nf6 {[%clk 0:02:53]} 6. e5 {[%clk 0:02:55]}  Nd5 {[%clk 0:02:53]} 7. Nxd5 {[%clk 0:02:45]}  Bxd5 {[%clk 0:02:53]} 8. Bf4 {[%clk 0:02:38]}  e6 {[%clk 0:02:52]} 9. Qd2 {[%clk 0:02:37]}  Nc6 {[%clk 0:02:51]} 10. Nb5 {[%clk 0:02:23]}  a6 {[%clk 0:02:47]} 11. Nc3 {[%clk 0:02:22]}  Bb4 {[%clk 0:02:37]} 12. Bd3 {[%clk 0:02:18]}  O-O {[%clk 0:02:24]} 13. O-O {[%clk 0:02:15]}  Rc8 {[%clk 0:02:22]} 14. Bxa6 {[%clk 0:02:06]}  Rc7 {[%clk 0:02:00]} 15. Bd3 {[%clk 0:02:04]}  Ne7 {[%clk 0:01:56]} 16. Bg5 {[%clk 0:01:57]}  Qe8 {[%clk 0:01:42]} 17. Bxe7 {[%clk 0:01:26]}  Bxc3 {[%clk 0:01:40]} 18. Bxh7+ {[%clk 0:01:22]}  Kxh7 {[%clk 0:01:23]} 19. Qd3+ {[%clk 0:01:22]}  Kg8 {[%clk 0:01:19]} 20. Bxf8 {[%clk 0:01:22]}  Bxb2 {[%clk 0:01:15]} 21. Bd6 {[%clk 0:01:14]}  Rc3 {[%clk 0:01:13]} 22. Qd2 {[%clk 0:00:55]}  Bxa1 {[%clk 0:01:12]} 23. Rxa1 {[%clk 0:00:56]}  Qc8 {[%clk 0:01:09]} 24. h4 {[%clk 0:00:50]}  Rxc2 {[%clk 0:00:59]} 25. Qg5 {[%clk 0:00:50]}  Qc3 {[%clk 0:00:38]} 26. Rf1 {[%clk 0:00:40]}  Qd2 {[%clk 0:00:30]} 27. Qd8+ {[%clk 0:00:31]}  Kh7 {[%clk 0:00:29]} 28. Qxd7 {[%clk 0:00:27]}  Bc4 {[%clk 0:00:27]} 29. Qxf7 {[%clk 0:00:25]}  Bxf1 {[%clk 0:00:24]} 30. Bf8 {[%clk 0:00:13]}  Qh6 {[%clk 0:00:11]} 31. Bxg7 {[%clk 0:00:13]}  Qxg7 {[%clk 0:00:08]} 32. Qh5+ {[%clk 0:00:13]}  Kg8 {[%clk 0:00:08]} 33. Qe8+ {[%clk 0:00:12]}  Kh7 {[%clk 0:00:07]} 34. Qh5+ {[%clk 0:00:12]}  Kg8 {[%clk 0:00:04]} 35. Qe8+ {[%clk 0:00:12]}  Qf8 {[%clk 0:00:03]} 36. Qg6+ {[%clk 0:00:12]}  Qg7 {[%clk 0:00:03]} 37. Qe8+ {[%clk 0:00:08]} 1/2-1/2


[Site "https://www.chess.com"]

[Event "Titled Tuesday Blitz August 08 Late 2023"]
[White "Altman, Joshua"]
[Black "He, Anthony"]
[WhiteFideId "426210"]
[BlackFideId "2088215"]
[WhiteElo "2607"]
[BlackElo "2953"]
[Result "0-1"]
[Round "2"]
[TimeControl "180+1"]
[Date "2023.08.08"]
[WhiteClock "0:00:13"]
[BlackClock "0:00:35"]
[Board "13"]

1. d4 {[%clk 0:03:00]}  Nf6 {[%clk 0:02:59]} 2. c4 {[%clk 0:03:01]}  g6 {[%clk 0:02:59]} 3. Nc3 {[%clk 0:03:01]}  d5 {[%clk 0:03:00]} 4. Bg5 {[%clk 0:03:01]}  Ne4 {[%clk 0:02:56]} 5. Bh4 {[%clk 0:03:01]}  Nxc3 {[%clk 0:02:52]} 6. bxc3 {[%clk 0:03:02]}  dxc4 {[%clk 0:02:53]} 7. e3 {[%clk 0:03:02]}  Be6 {[%clk 0:02:53]} 8. Rb1 {[%clk 0:03:02]}  b6 {[%clk 0:02:48]} 9. Nf3 {[%clk 0:02:44]}  Bg7 {[%clk 0:02:47]} 10. Be2 {[%clk 0:02:44]}  O-O {[%clk 0:02:45]} 11. Nd2 {[%clk 0:02:44]}  c5 {[%clk 0:02:39]} 12. Nxc4 {[%clk 0:02:38]}  Nc6 {[%clk 0:02:38]} 13. O-O {[%clk 0:02:36]}  cxd4 {[%clk 0:02:36]} 14. cxd4 {[%clk 0:02:35]}  Rc8 {[%clk 0:02:34]} 15. Rc1 {[%clk 0:02:35]}  Qd7 {[%clk 0:02:31]} 16. h3 {[%clk 0:02:26]}  Rfd8 {[%clk 0:02:30]} 17. Qd2 {[%clk 0:02:18]}  Bd5 {[%clk 0:02:18]} 18. Rfd1 {[%clk 0:02:12]}  Qb7 {[%clk 0:02:16]} 19. Bf1 {[%clk 0:02:03]}  Rd7 {[%clk 0:02:07]} 20. Bg3 {[%clk 0:01:43]}  Be4 {[%clk 0:01:55]} 21. Qe1 {[%clk 0:01:38]}  Rcd8 {[%clk 0:01:53]} 22. Nd2 {[%clk 0:01:36]}  Bd5 {[%clk 0:01:41]} 23. Bc4 {[%clk 0:01:26]}  e5 {[%clk 0:01:27]} 24. Bxd5 {[%clk 0:01:12]}  Rxd5 {[%clk 0:01:27]} 25. dxe5 {[%clk 0:01:05]}  Bxe5 {[%clk 0:01:27]} 26. Ne4 {[%clk 0:01:01]}  Bg7 {[%clk 0:01:03]} 27. Rxd5 {[%clk 0:00:59]}  Rxd5 {[%clk 0:01:04]} 28. Nd6 {[%clk 0:00:53]}  Qd7 {[%clk 0:01:03]} 29. Ne4 {[%clk 0:00:49]}  h5 {[%clk 0:01:02]} 30. Qe2 {[%clk 0:00:48]}  Ne5 {[%clk 0:00:58]} 31. Bxe5 {[%clk 0:00:46]}  Bxe5 {[%clk 0:00:58]} 32. Qf3 {[%clk 0:00:44]}  Kg7 {[%clk 0:00:57]} 33. g3 {[%clk 0:00:39]}  Qxh3 {[%clk 0:00:47]} 34. Qxf7+ {[%clk 0:00:23]}  Kxf7 {[%clk 0:00:46]} 35. Ng5+ {[%clk 0:00:23]}  Ke7 {[%clk 0:00:46]} 36. Nxh3 {[%clk 0:00:24]}  Rd2 {[%clk 0:00:46]} 37. Nf4 {[%clk 0:00:23]}  Bxf4 {[%clk 0:00:44]} 38. exf4 {[%clk 0:00:21]}  Rxa2 {[%clk 0:00:44]} 39. Rc6 {[%clk 0:00:22]}  Kf7 {[%clk 0:00:44]} 40. Kg2 {[%clk 0:00:21]}  b5 {[%clk 0:00:41]} 41. Kh3 {[%clk 0:00:18]}  b4 {[%clk 0:00:40]} 42. f3 {[%clk 0:00:18]}  b3 {[%clk 0:00:37]} 43. Rc7+ {[%clk 0:00:18]}  Kf6 {[%clk 0:00:37]} 44. Rb7 {[%clk 0:00:19]}  b2 {[%clk 0:00:37]} 45. g4 {[%clk 0:00:18]}  a5 {[%clk 0:00:37]} 46. Rb6+ {[%clk 0:00:16]}  Ke7 {[%clk 0:00:37]} 47. gxh5 {[%clk 0:00:17]}  gxh5 {[%clk 0:00:37]} 48. Kh4 {[%clk 0:00:17]}  a4 {[%clk 0:00:38]} 49. Kxh5 {[%clk 0:00:17]}  a3 {[%clk 0:00:38]} 50. Kg6 {[%clk 0:00:17]}  Ra1 {[%clk 0:00:39]} 51. Rb7+ {[%clk 0:00:15]}  Kd6 {[%clk 0:00:35]} 52. f5 {[%clk 0:00:15]}  b1=Q {[%clk 0:00:34]} 53. Rxb1 {[%clk 0:00:14]}  Rxb1 {[%clk 0:00:34]} 54. f6 {[%clk 0:00:13]}  a2 {[%clk 0:00:35]} 0-1


[Site "https://www.chess.com"]